Body,Body Name,Date,TransNo,Amount � (Excl VAT),Supplier name,Description,Expense Area,Expense Type,Expense Code,
http://opendatacommunities.org/id/london-borough-council/sutton,London Borough of Sutton,09/03/2020,1291745,230.00 , WESTMINSTER FORUM PROJ,CONFERENCE,Peoples Services Directorate,Conferences - Fees,A525,
http://opendatacommunities.org/id/london-borough-council/sutton,London Borough of Sutton,18/03/2020,1291745,65.25 , W M MORRISONS.COM,PROVISIONS,Peoples Services Directorate,Provisions - General,F150,
http://opendatacommunities.org/id/london-borough-council/sutton,London Borough of Sutton,02/03/2020,1291745,53.00 , WWW.GOMPELS.CO.UK,PROVISIONS,Peoples Services Directorate,Provisions - General,F150,
http://opendatacommunities.org/id/london-borough-council/sutton,London Borough of Sutton,02/03/2020,1291745,47.57 , W M MORRISONS.COM,PROVISIONS,Peoples Services Directorate,Provisions - General,F150,
http://opendatacommunities.org/id/london-borough-council/sutton,London Borough of Sutton,19/03/2020,1291745,250.91 , ARGOS LTD,250.91 - F106 0037 9999 - ARGOS .PNG,Peoples Services Directorate,Personal Requisites,F106,
http://opendatacommunities.org/id/london-borough-council/sutton,London Borough of Sutton,19/03/2020,1291745,619.99 , ARGOS LTD,619.00 - F106 0037 9999 - ARGOS .PNG,Peoples Services Directorate,Personal Requisites,F106,
http://opendatacommunities.org/id/london-borough-council/sutton,London Borough of Sutton,23/03/2020,1291745,410.68 , DDC EPSOM,TRADE PAINTS FOR OFFICE,Peoples Services Directorate,General Maintenance,D500,
http://opendatacommunities.org/id/london-borough-council/sutton,London Borough of Sutton,28/02/2020,1291745,24.99 , SERENATA FLOWERS,FLOWER FOR STAFF WHO SUFFERED A FAMILY BEREAVEMENT,Peoples Services Directorate,Materials - General,F100,
http://opendatacommunities.org/id/london-borough-council/sutton,London Borough of Sutton,04/03/2020,1291745,111.92 , TRAINLINE,STAFF TRAVEL,Peoples Services Directorate,Staff Travelling Expenses,E130,
http://opendatacommunities.org/id/london-borough-council/sutton,London Borough of Sutton,29/02/2020,1291745,67.30 , MAILCHIMP    MONTHLY,MONTHLY PLAN,Peoples Services Directorate,Advertising/Publicity (non Staff),F240,
http://opendatacommunities.org/id/london-borough-council/sutton,London Borough of Sutton,09/03/2020,1291745,308.78 , PLASTICSHOP,STATIONARY,Peoples Services Directorate,Advertising/Publicity (non Staff),F240,
http://opendatacommunities.org/id/london-borough-council/sutton,London Borough of Sutton,04/03/2020,1291745,120.00 , WWW.INSTANTPRINT.C,FLYERS/BOOKLETS,Peoples Services Directorate,Advertising/Publicity (non Staff),F240,
http://opendatacommunities.org/id/london-borough-council/sutton,London Borough of Sutton,12/03/2020,1291745,62.92 , WILKO RETAIL LIMITED,CLEANING FOR CORONAVIRUS,Peoples Services Directorate,Health and Safety Equipment,F005,
http://opendatacommunities.org/id/london-borough-council/sutton,London Borough of Sutton,09/03/2020,1291745,18.32 , AMZNMKTPLACE,FOOT STOOL,Peoples Services Directorate,Health and Safety Equipment,F005,
http://opendatacommunities.org/id/london-borough-council/sutton,London Borough of Sutton,02/03/2020,1291745,5.00 , PRIMARK,HAND GEL BOTTLES,Peoples Services Directorate,First Aid and Medical Requisites,F105,
http://opendatacommunities.org/id/london-borough-council/sutton,London Borough of Sutton,12/03/2020,1291745,60.00 , WILKO RETAIL LIMITED,ANTI-BACTERIAL SPRAY,Peoples Services Directorate,Health and Safety Equipment,F005,
http://opendatacommunities.org/id/london-borough-council/sutton,London Borough of Sutton,12/03/2020,1291745,44.00 , SAINSBURYS 2006,CLEANING FLUID,Peoples Services Directorate,Health and Safety Equipment,F005,
http://opendatacommunities.org/id/london-borough-council/sutton,London Borough of Sutton,12/03/2020,1291745,8.87 , ICELAND,KITCHEN ROLLS,Peoples Services Directorate,Health and Safety Equipment,F005,
http://opendatacommunities.org/id/london-borough-council/sutton,London Borough of Sutton,12/03/2020,1291745,(44.00), SAINSBURYS 2006,CLEANING FLUID NOT ANTI-BACTERIAL RETURNED,Peoples Services Directorate,Health and Safety Equipment,F005,
http://opendatacommunities.org/id/london-borough-council/sutton,London Borough of Sutton,13/03/2020,1291745,146.35 , GLS EDUCATIONAL,ANTI-BACTERIAL HANDWASH AND CLEAR FOAM WASH,Peoples Services Directorate,Education Equipment,F009,
http://opendatacommunities.org/id/london-borough-council/sutton,London Borough of Sutton,27/02/2020,1291745,15.00 , ACE360,LICENCE,Peoples Services Directorate,Training Equipment-Pchase,F002,
http://opendatacommunities.org/id/london-borough-council/sutton,London Borough of Sutton,28/02/2020,1291745,22.10 , SCRIBBLERS,HUNT NIBS,Peoples Services Directorate,Education Equipment,F009,
http://opendatacommunities.org/id/london-borough-council/sutton,London Borough of Sutton,10/03/2020,1291745,4.68 , MELBOURNE NURSERY,DEMO MATERIALS FLORISTRY,Peoples Services Directorate,Education Equipment,F009,
http://opendatacommunities.org/id/london-borough-council/sutton,London Borough of Sutton,06/03/2020,1291745,10.00 , MELBOURNE NURSERY,DEMO MATERIALS FLORISTRY,Peoples Services Directorate,Education Equipment,F009,
http://opendatacommunities.org/id/london-borough-council/sutton,London Borough of Sutton,03/03/2020,1291745,13.00 , MELBOURNE NURSERY,"DEMO MATERIALS FIF, L2 AND L3 FLORISTRY",Peoples Services Directorate,Education Equipment,F009,
http://opendatacommunities.org/id/london-borough-council/sutton,London Borough of Sutton,27/02/2020,1291745,19.36 , MELBOURNE NURSERY,DEMO MATERIALS FIF AND L3 FLORISTRY,Peoples Services Directorate,Education Equipment,F009,
http://opendatacommunities.org/id/london-borough-council/sutton,London Borough of Sutton,18/03/2020,1291745,66.94 , SPORTSDIRECT.COM,SHUTTLECOCKS,Peoples Services Directorate,Education Equipment,F009,
http://opendatacommunities.org/id/london-borough-council/sutton,London Borough of Sutton,16/03/2020,1291745,19.02 , LIDL GB LONDON,COOKERY INGREDIENTS,Peoples Services Directorate,Education Equipment,F009,
http://opendatacommunities.org/id/london-borough-council/sutton,London Borough of Sutton,11/03/2020,1291745,6.97 , LIDL GB LONDON,COOKERY MATERIALS,Peoples Services Directorate,Education Equipment,F009,
http://opendatacommunities.org/id/london-borough-council/sutton,London Borough of Sutton,09/03/2020,1291745,23.45 , SAINSBURYS 2006,COOKERY MATERIALS,Peoples Services Directorate,Education Equipment,F009,
http://opendatacommunities.org/id/london-borough-council/sutton,London Borough of Sutton,04/03/2020,1291745,11.95 , SAINSBURYS SACAT 2006,COOKERY MATERIALS,Peoples Services Directorate,Education Equipment,F009,
http://opendatacommunities.org/id/london-borough-council/sutton,London Borough of Sutton,03/03/2020,1291745,2.90 , WILKO RETAIL LIMITED,COOKERY MATERIALS,Peoples Services Directorate,Education Equipment,F009,
http://opendatacommunities.org/id/london-borough-council/sutton,London Borough of Sutton,02/03/2020,1291745,16.63 , SAINSBURYS 2006,COOKERY MATERIALS,Peoples Services Directorate,Education Equipment,F009,
http://opendatacommunities.org/id/london-borough-council/sutton,London Borough of Sutton,03/03/2020,1291745,19.10 , NEW SOUTHERN RAILW,TRAVEL TO JMH,Peoples Services Directorate,Travelling and Subsistence Allowances,A530,
http://opendatacommunities.org/id/london-borough-council/sutton,London Borough of Sutton,19/03/2020,1291745,9.89 , MCDONALDS,MC ACTIVITY,Peoples Services Directorate,Personal Requisites,F106,
http://opendatacommunities.org/id/london-borough-council/sutton,London Borough of Sutton,19/03/2020,1291745,29.00 , SAINSBURYS 0052,MG BDAY,Peoples Services Directorate,Personal Requisites,F106,
http://opendatacommunities.org/id/london-borough-council/sutton,London Borough of Sutton,19/03/2020,1291745,10.60 , PICK N PAY,JD FRUIT AND VEG,Peoples Services Directorate,Personal Requisites,F106,
http://opendatacommunities.org/id/london-borough-council/sutton,London Borough of Sutton,19/03/2020,1291745,101.40 , POST OFFICE COUNTER,JM AND JD BDAY,Peoples Services Directorate,Personal Requisites,F106,
http://opendatacommunities.org/id/london-borough-council/sutton,London Borough of Sutton,18/03/2020,1291745,7.15 , PPOINT_ MICHAEL'S STOR,JC GROCERIES,Peoples Services Directorate,Personal Requisites,F106,
http://opendatacommunities.org/id/london-borough-council/sutton,London Borough of Sutton,18/03/2020,1291745,13.36 , PPOINT_ MICHAEL'S STOR,JC GROCERIES,Peoples Services Directorate,Personal Requisites,F106,
http://opendatacommunities.org/id/london-borough-council/sutton,London Borough of Sutton,17/03/2020,1291745,61.11 , W M MORRISON STORE,MC GROCERIES,Peoples Services Directorate,Personal Requisites,F106,
http://opendatacommunities.org/id/london-borough-council/sutton,London Borough of Sutton,17/03/2020,1291745,9.15 , B AND B STORE,CG GROCERIES,Peoples Services Directorate,Personal Requisites,F106,
http://opendatacommunities.org/id/london-borough-council/sutton,London Borough of Sutton,16/03/2020,1291745,39.94 , SAINSBURYS SACAT 2006,JC GROCERIES,Peoples Services Directorate,Personal Requisites,F106,
http://opendatacommunities.org/id/london-borough-council/sutton,London Borough of Sutton,13/03/2020,1291745,4.72 , MCDONALDS911,MC ACTIVITY,Peoples Services Directorate,Personal Requisites,F106,
http://opendatacommunities.org/id/london-borough-council/sutton,London Borough of Sutton,13/03/2020,1291745,9.88 , BOOTS 1420,SN,Peoples Services Directorate,Personal Requisites,F106,
http://opendatacommunities.org/id/london-borough-council/sutton,London Borough of Sutton,12/03/2020,1291745,28.76 , SAINSBURYS SACAT 2006,JD GROCERIES,Peoples Services Directorate,Personal Requisites,F106,
http://opendatacommunities.org/id/london-borough-council/sutton,London Borough of Sutton,12/03/2020,1291745,3.00 , WM MORRISONS STORE,MA ACTIVITY,Peoples Services Directorate,Personal Requisites,F106,
http://opendatacommunities.org/id/london-borough-council/sutton,London Borough of Sutton,11/03/2020,1291745,20.84 , B AND B STORE,MA GROCERIES,Peoples Services Directorate,Personal Requisites,F106,
http://opendatacommunities.org/id/london-borough-council/sutton,London Borough of Sutton,11/03/2020,1291745,11.38 , MCDONALDS911,MC ACTIVITY,Peoples Services Directorate,Personal Requisites,F106,
http://opendatacommunities.org/id/london-borough-council/sutton,London Borough of Sutton,11/03/2020,1291745,20.00 , WM MORRISONS STORE,LCT CARDS,Peoples Services Directorate,Personal Requisites,F106,
http://opendatacommunities.org/id/london-borough-council/sutton,London Borough of Sutton,10/03/2020,1291745,16.86 , PPOINT_ BOTTLE & BASKE,LC GROCERIES,Peoples Services Directorate,Personal Requisites,F106,
http://opendatacommunities.org/id/london-borough-council/sutton,London Borough of Sutton,10/03/2020,1291745,9.13 , SUBWAY68205,LC ACTIVITY,Peoples Services Directorate,Personal Requisites,F106,
http://opendatacommunities.org/id/london-borough-council/sutton,London Borough of Sutton,09/03/2020,1291745,19.73 , PPOINT_ MICHAEL'S STOR,DR GROCERIES,Peoples Services Directorate,Personal Requisites,F106,
http://opendatacommunities.org/id/london-borough-council/sutton,London Borough of Sutton,09/03/2020,1291745,4.40 , NEW SOUTHERN RAILW,CG TRAVEL INTERVIEW,Peoples Services Directorate,Personal Requisites,F106,
http://opendatacommunities.org/id/london-borough-council/sutton,London Borough of Sutton,08/03/2020,1291745,11.06 , LIDL GB LONDON,DR GROCERIES,Peoples Services Directorate,Personal Requisites,F106,
http://opendatacommunities.org/id/london-borough-council/sutton,London Borough of Sutton,07/03/2020,1291745,25.33 , SAINSBURYS 0052,KP GROCERIES,Peoples Services Directorate,Personal Requisites,F106,
http://opendatacommunities.org/id/london-borough-council/sutton,London Borough of Sutton,07/03/2020,1291745,5.50 , ARGOS PURLEY WAY,KP SET UP,Peoples Services Directorate,Personal Requisites,F106,
http://opendatacommunities.org/id/london-borough-council/sutton,London Borough of Sutton,07/03/2020,1291745,9.20 , KFC THE COLONNADES,AO ACTIVITY,Peoples Services Directorate,Personal Requisites,F106,
http://opendatacommunities.org/id/london-borough-council/sutton,London Borough of Sutton,06/03/2020,1291745,70.00 , SUTTON ORTHODONTICS,JMH DENTIST,Peoples Services Directorate,Personal Requisites,F106,
http://opendatacommunities.org/id/london-borough-council/sutton,London Borough of Sutton,05/03/2020,1291745,53.52 , JUST EAT,LIFE SKILLS DINNER KEBAB,Peoples Services Directorate,Personal Requisites,F106,
http://opendatacommunities.org/id/london-borough-council/sutton,London Borough of Sutton,05/03/2020,1291745,89.85 , JUST EAT,LIFE SKILLS DINNER,Peoples Services Directorate,Personal Requisites,F106,
http://opendatacommunities.org/id/london-borough-council/sutton,London Borough of Sutton,04/03/2020,1291745,115.30 , TESCO STORE 3235,LIFE SKILLS CELEBRATION,Peoples Services Directorate,Personal Requisites,F106,
http://opendatacommunities.org/id/london-borough-council/sutton,London Borough of Sutton,03/03/2020,1291745,3.95 , STARBUCKS,JMH ACTIVITY,Peoples Services Directorate,Personal Requisites,F106,
http://opendatacommunities.org/id/london-borough-council/sutton,London Borough of Sutton,26/02/2020,1291745,45.99 , WWW.PIZZAGOGO.CO.UK,LIFE SKILLS FOOD,Peoples Services Directorate,Personal Requisites,F106,
http://opendatacommunities.org/id/london-borough-council/sutton,London Borough of Sutton,23/03/2020,1291745,14.95 , SAINSBURYS SACAT 2006,JD GROCERIES,Peoples Services Directorate,Personal Requisites,F106,
http://opendatacommunities.org/id/london-borough-council/sutton,London Borough of Sutton,22/03/2020,1291745,24.11 , LIDL GB LONDON,LC GROCERIES,Peoples Services Directorate,Personal Requisites,F106,
http://opendatacommunities.org/id/london-borough-council/sutton,London Borough of Sutton,16/03/2020,1291745,48.00 , UK DEED POLL SERVICE L,48.00 - H301 0304 9999 - UK DEED POLL SERVICE L.PNG,Peoples Services Directorate,Client Care/Assistance,H301,
http://opendatacommunities.org/id/london-borough-council/sutton,London Borough of Sutton,23/03/2020,1291745,30.38 , AMAZON.CO.UK DX82N4RK5,MM EDUC,Peoples Services Directorate,Education Allowance,H321,
http://opendatacommunities.org/id/london-borough-council/sutton,London Borough of Sutton,07/03/2020,1291745,64.00 , SAINSBURYS 0052,KP SETTING UP,Peoples Services Directorate,Set Up Costs - Children Leaving Care,H336,
http://opendatacommunities.org/id/london-borough-council/sutton,London Borough of Sutton,23/03/2020,1291745,16.00 , ARGOS SELLY OAK,JD SET UP,Peoples Services Directorate,Set Up Costs - Children Leaving Care,H336,
http://opendatacommunities.org/id/london-borough-council/sutton,London Borough of Sutton,08/03/2020,1291745,150.00 , TRINITYONLINEPAY,ENGLISH EXAM FOR IMMIGRATION,Peoples Services Directorate,Education Allowance,H321,
http://opendatacommunities.org/id/london-borough-council/sutton,London Borough of Sutton,07/03/2020,1291745,20.00 , OYSTER BUS AUTOLOAD,20.00 - A530 0310 9999 - OYSTER TOP UP 9TH MARCH .PNG,Peoples Services Directorate,Travelling and Subsistence Allowances,A530,
http://opendatacommunities.org/id/london-borough-council/sutton,London Borough of Sutton,06/03/2020,1291745,20.00 , OYSTER BUS AUTOLOAD,20.00 - A530 0310 9999 - OYSTER TOP UP,Peoples Services Directorate,Travelling and Subsistence Allowances,A530,
http://opendatacommunities.org/id/london-borough-council/sutton,London Borough of Sutton,06/03/2020,1291745,20.00 , OYSTER AUTO-TOP UP,20.00 - A530 0310 9999 - OYSTER TOP UP,Peoples Services Directorate,Travelling and Subsistence Allowances,A530,
http://opendatacommunities.org/id/london-borough-council/sutton,London Borough of Sutton,04/03/2020,1291745,25.00 , OYSTER ONLINE,25 - A530 0310 9999 OYSTER.PDF,Peoples Services Directorate,Travelling and Subsistence Allowances,A530,
http://opendatacommunities.org/id/london-borough-council/sutton,London Borough of Sutton,04/03/2020,1291745,25.00 , OYSTER ONLINE,25 - A530 0310 9999 OYSTER.PDF,Peoples Services Directorate,Travelling and Subsistence Allowances,A530,
http://opendatacommunities.org/id/london-borough-council/sutton,London Borough of Sutton,18/03/2020,1291745,211.95 , ARGOS LTD,211.95 - H301 0311 9999 - FURNITURE FOR LAC.PNG,Peoples Services Directorate,Client Care/Assistance,H301,
http://opendatacommunities.org/id/london-borough-council/sutton,London Borough of Sutton,04/03/2020,1291745,20.00 , OYSTER BUS AUTOLOAD,20.00 A530 9999 OYSTER,Peoples Services Directorate,Travelling and Subsistence Allowances,A530,
http://opendatacommunities.org/id/london-borough-council/sutton,London Borough of Sutton,02/03/2020,1291745,60.26 , MINICABIT,60.26 - H301 0311 9999 - CLIENT TRAVEL.P,Peoples Services Directorate,Travelling and Subsistence Allowances,A530,
http://opendatacommunities.org/id/london-borough-council/sutton,London Borough of Sutton,29/02/2020,1291745,20.00 , OYSTER AUTO-TOP UP,20.00 - A530 0311 9999 - AUTO TOP UP .PNG,Peoples Services Directorate,Travelling and Subsistence Allowances,A530,
http://opendatacommunities.org/id/london-borough-council/sutton,London Borough of Sutton,11/03/2020,1291745,20.00 , OYSTER BUS AUTOLOAD,20.00 - A530 0311 9999 - OYSTER TOP UP 1,Peoples Services Directorate,Travelling and Subsistence Allowances,A530,
http://opendatacommunities.org/id/london-borough-council/sutton,London Borough of Sutton,11/03/2020,1291745,20.00 , OYSTER AUTO-TOP UP,OYSTER TOP UP,Peoples Services Directorate,Travelling and Subsistence Allowances,A530,
http://opendatacommunities.org/id/london-borough-council/sutton,London Borough of Sutton,08/03/2020,1291745,20.00 , OYSTER BUS AUTOLOAD,20.00 - A530 0311 9999 - OYSTER TOP UP,Peoples Services Directorate,Travelling and Subsistence Allowances,A530,
http://opendatacommunities.org/id/london-borough-council/sutton,London Borough of Sutton,06/03/2020,1291745,20.00 , OYSTER AUTO-TOP UP,OYSTER TOP UP,Peoples Services Directorate,Travelling and Subsistence Allowances,A530,
http://opendatacommunities.org/id/london-borough-council/sutton,London Borough of Sutton,27/02/2020,1291745,20.00 , OYSTER AUTO-TOP UP,OYSTER TOP UP,Peoples Services Directorate,Travelling and Subsistence Allowances,A530,
http://opendatacommunities.org/id/london-borough-council/sutton,London Borough of Sutton,28/02/2020,1291745,20.00 , OYSTER BUS AUTOLOAD,20.00 - A530 0311 9999 - AUTO TOP UP,Peoples Services Directorate,Travelling and Subsistence Allowances,A530,
http://opendatacommunities.org/id/london-borough-council/sutton,London Borough of Sutton,28/02/2020,1291745,20.00 , OYSTER AUTO-TOP UP,20.00 - A530 0311 9999 - AUTO TOP,Peoples Services Directorate,Travelling and Subsistence Allowances,A530,
http://opendatacommunities.org/id/london-borough-council/sutton,London Borough of Sutton,28/02/2020,1291745,20.00 , OYSTER AUTO-TOP UP,20.00 - A530 0311 9999 - AUTO TOP UP,Peoples Services Directorate,Travelling and Subsistence Allowances,A530,
http://opendatacommunities.org/id/london-borough-council/sutton,London Borough of Sutton,24/03/2020,1291745,989.93 , ARGOS LTD,989.93 F106 0311-ARGOS.,Peoples Services Directorate,Personal Requisites,F106,
http://opendatacommunities.org/id/london-borough-council/sutton,London Borough of Sutton,20/03/2020,1291745,25.00 , BUGSYS,BUGSY BOWLING,Peoples Services Directorate,Personal Requisites,F106,
http://opendatacommunities.org/id/london-borough-council/sutton,London Borough of Sutton,10/03/2020,1291745,11.00 , KENT COUNTY COUNCIL,11.00 - F106 0311 9999 - KENT COUNTY COUNCIL BC.,Peoples Services Directorate,Personal Requisites,F106,
http://opendatacommunities.org/id/london-borough-council/sutton,London Borough of Sutton,03/03/2020,1291745,4.85 , AMAZON.CO.UK VX1V35N55,SPLIT - WHAT'S HAPPENING TO ME? (GIRLS EDITION)  (FACTS OF LIFE) (83.05%),Peoples Services Directorate,Personal Requisites,F106,
http://opendatacommunities.org/id/london-borough-council/sutton,London Borough of Sutton,03/03/2020,1291745,0.99 , AMAZON.CO.UK VX1V35N55,BALANCING ENTRY AMOUNT (16.95%),Peoples Services Directorate,Personal Requisites,F106,
http://opendatacommunities.org/id/london-borough-council/sutton,London Borough of Sutton,27/02/2020,1291745,38.67 , HARLOW LEISUREZONE,CONTACT ACTIVITY,Peoples Services Directorate,Personal Requisites,F106,
http://opendatacommunities.org/id/london-borough-council/sutton,London Borough of Sutton,10/03/2020,1291745,28.00 , GEN REGISTER OFFICE,28.00 - F106 0311 9999 - GRO BIRTH CERTIFICATE,Peoples Services Directorate,Personal Requisites,F106,
http://opendatacommunities.org/id/london-borough-council/sutton,London Borough of Sutton,26/02/2020,1291745,14.61 , AMAZON.CO.UK H70FW7AC5,SPLIT - THE A-Z OF THERAPEUTIC PARENTING: STRATEGIES AND SOLUTIONS (THERAPEUTIC PARENTING BOOKS) (100%),Peoples Services Directorate,Personal Requisites,F106,
http://opendatacommunities.org/id/london-borough-council/sutton,London Borough of Sutton,04/03/2020,1291745,49.74 , TRAVELODGE,TRAVELODGE CROYDON CENTRAL,Peoples Services Directorate,Accommodation - Bed and Breakfast,H202,
http://opendatacommunities.org/id/london-borough-council/sutton,London Borough of Sutton,27/02/2020,1291745,56.39 , TRAVELODGE,TRAVELODGE,Peoples Services Directorate,Accommodation - Bed and Breakfast,H202,
http://opendatacommunities.org/id/london-borough-council/sutton,London Borough of Sutton,12/03/2020,1291745,76.24 , TRAVELODGE,EMERGENCY ACCOMMODATION,Peoples Services Directorate,Accommodation - Bed and Breakfast,H202,
http://opendatacommunities.org/id/london-borough-council/sutton,London Borough of Sutton,16/03/2020,1291745,56.56 , MINICABIT,56.56 H202 0311 9999 MINICABIT.,Peoples Services Directorate,Accommodation - Bed and Breakfast,H202,
http://opendatacommunities.org/id/london-borough-council/sutton,London Borough of Sutton,06/03/2020,1291745,20.60 , WWW.WIGHTLINK.CO.UK,20.60 - H212 0311 9999 - WIGHTLINK FERRY BOOKING,Peoples Services Directorate,C.C.A Travel & Subsistance,H212,
http://opendatacommunities.org/id/london-borough-council/sutton,London Borough of Sutton,04/03/2020,1291745,20.60 , WWW.WIGHTLINK.CO.UK,WIGHTLINK FERRIES,Peoples Services Directorate,C.C.A Travel & Subsistance,H212,
http://opendatacommunities.org/id/london-borough-council/sutton,London Borough of Sutton,04/03/2020,1291745,20.60 , WWW.WIGHTLINK.CO.UK,WIGHTLINK FERRIES,Peoples Services Directorate,C.C.A Travel & Subsistance,H212,
http://opendatacommunities.org/id/london-borough-council/sutton,London Borough of Sutton,18/03/2020,1291745,69.62 , MINICABIT,69.62 - H212 0311 9999 - TAXI BOOKING,Peoples Services Directorate,C.C.A Travel & Subsistance,H212,
http://opendatacommunities.org/id/london-borough-council/sutton,London Borough of Sutton,12/03/2020,1291745,20.00 , OYSTER AUTO-TOP UP,OYSTER CARD TOP UP,Peoples Services Directorate,Travelling and Subsistence Allowances,A530,
http://opendatacommunities.org/id/london-borough-council/sutton,London Borough of Sutton,12/03/2020,1291745,20.00 , OYSTER BUS AUTOLOAD,20.00 A530 0312 9999 OYSTER,Peoples Services Directorate,Travelling and Subsistence Allowances,A530,
http://opendatacommunities.org/id/london-borough-council/sutton,London Borough of Sutton,15/03/2020,1291745,20.00 , OYSTER AUTO-TOP UP,OYSTER CARD TOP UP,Peoples Services Directorate,Travelling and Subsistence Allowances,A530,
http://opendatacommunities.org/id/london-borough-council/sutton,London Borough of Sutton,20/03/2020,1291745,20.00 , OYSTER BUS AUTOLOAD,OYSTER CARD TOP UP,Peoples Services Directorate,Travelling and Subsistence Allowances,A530,
http://opendatacommunities.org/id/london-borough-council/sutton,London Borough of Sutton,19/03/2020,1291745,20.00 , OYSTER BUS AUTOLOAD,OYSTER CARD TOP UP,Peoples Services Directorate,Travelling and Subsistence Allowances,A530,
http://opendatacommunities.org/id/london-borough-council/sutton,London Borough of Sutton,19/03/2020,1291745,20.00 , OYSTER AUTO-TOP UP,OYSTER CARD TOP UP,Peoples Services Directorate,Travelling and Subsistence Allowances,A530,
http://opendatacommunities.org/id/london-borough-council/sutton,London Borough of Sutton,19/03/2020,1291745,20.00 , OYSTER AUTO-TOP UP,OYSTER CARD TOP UP,Peoples Services Directorate,Travelling and Subsistence Allowances,A530,
http://opendatacommunities.org/id/london-borough-council/sutton,London Borough of Sutton,19/03/2020,1291745,20.00 , OYSTER BUS AUTOLOAD,OYSTER CARD TOP UP,Peoples Services Directorate,Travelling and Subsistence Allowances,A530,
http://opendatacommunities.org/id/london-borough-council/sutton,London Borough of Sutton,15/03/2020,1291745,20.00 , OYSTER AUTO-TOP UP,OYSTER CARD TOP UP,Peoples Services Directorate,Travelling and Subsistence Allowances,A530,
http://opendatacommunities.org/id/london-borough-council/sutton,London Borough of Sutton,15/03/2020,1291745,20.00 , OYSTER AUTO-TOP UP,OYSTER CARD TOP UP,Peoples Services Directorate,Travelling and Subsistence Allowances,A530,
http://opendatacommunities.org/id/london-borough-council/sutton,London Borough of Sutton,15/03/2020,1291745,20.00 , OYSTER BUS AUTOLOAD,OYSTER CARD TOP UP,Peoples Services Directorate,Travelling and Subsistence Allowances,A530,
http://opendatacommunities.org/id/london-borough-council/sutton,London Borough of Sutton,04/03/2020,1291745,25.00 , OYSTER ONLINE,20.00 - A530 0312 9999 - OYSTER TOP UP,Peoples Services Directorate,Travelling and Subsistence Allowances,A530,
http://opendatacommunities.org/id/london-borough-council/sutton,London Borough of Sutton,26/02/2020,1291745,20.00 , OYSTER BUS AUTOLOAD,20.00 0312 A530 OYSTER CARD.,Peoples Services Directorate,Travelling and Subsistence Allowances,A530,
http://opendatacommunities.org/id/london-borough-council/sutton,London Borough of Sutton,02/03/2020,1291745,20.00 , OYSTER BUS AUTOLOAD,20.00 - A530 0312 9999 - OYSTER TOP UP,Peoples Services Directorate,Travelling and Subsistence Allowances,A530,
http://opendatacommunities.org/id/london-borough-council/sutton,London Borough of Sutton,15/03/2020,1291745,20.00 , OYSTER AUTO-TOP UP,OYSTER CARD TOP UP,Peoples Services Directorate,Travelling and Subsistence Allowances,A530,
http://opendatacommunities.org/id/london-borough-council/sutton,London Borough of Sutton,14/03/2020,1291745,20.00 , OYSTER BUS AUTOLOAD,OYSTER CARD TOP UP,Peoples Services Directorate,Travelling and Subsistence Allowances,A530,
http://opendatacommunities.org/id/london-borough-council/sutton,London Borough of Sutton,14/03/2020,1291745,20.00 , OYSTER AUTO-TOP UP,OYSTER CARD TOP UP,Peoples Services Directorate,Travelling and Subsistence Allowances,A530,
http://opendatacommunities.org/id/london-borough-council/sutton,London Borough of Sutton,14/03/2020,1291745,20.00 , OYSTER BUS AUTOLOAD,OYSTER CARD TOP UP,Peoples Services Directorate,Travelling and Subsistence Allowances,A530,
http://opendatacommunities.org/id/london-borough-council/sutton,London Borough of Sutton,14/03/2020,1291745,20.00 , OYSTER AUTO-TOP UP,OYSTER CARD TOP UP,Peoples Services Directorate,Travelling and Subsistence Allowances,A530,
http://opendatacommunities.org/id/london-borough-council/sutton,London Borough of Sutton,13/03/2020,1291745,20.00 , OYSTER AUTO-TOP UP,OYSTER CARD TOP UP,Peoples Services Directorate,Travelling and Subsistence Allowances,A530,
http://opendatacommunities.org/id/london-borough-council/sutton,London Borough of Sutton,13/03/2020,1291745,20.00 , OYSTER BUS AUTOLOAD,OYSTER CARD TOP UP,Peoples Services Directorate,Travelling and Subsistence Allowances,A530,
http://opendatacommunities.org/id/london-borough-council/sutton,London Borough of Sutton,12/03/2020,1291745,20.00 , OYSTER AUTO-TOP UP,OYSTER CARD TOP UP,Peoples Services Directorate,Travelling and Subsistence Allowances,A530,
http://opendatacommunities.org/id/london-borough-council/sutton,London Borough of Sutton,24/03/2020,1291745,132.00 , EZYS TAXIS LTD,ETZY TAXI,Peoples Services Directorate,Hired Peoples Transport (Children),E072,
http://opendatacommunities.org/id/london-borough-council/sutton,London Borough of Sutton,06/03/2020,1291745,70.00 , RB KINGSTON GUILDHALL2,70.00 - F106 0312 9999 - KINGSTON BIRTH CERT .P,Peoples Services Directorate,Personal Requisites,F106,
http://opendatacommunities.org/id/london-borough-council/sutton,London Borough of Sutton,04/03/2020,1291745,33.00 , LBSUTTON,BIRTH CERT SUTTON,Peoples Services Directorate,Personal Requisites,F106,
http://opendatacommunities.org/id/london-borough-council/sutton,London Borough of Sutton,20/03/2020,1291745,13.98 , AMZNMKTPLACE,"SPLIT - SURRI MICRO USB CABLE ANDROID, MICRO USB TO USB 2.0 CABLE 5PACK (3FT 3FT 6FT 6FT 10FT) NYLON BRAIDED SYNC AND FAST CHARGING CORD COMPATIBLE ANDROID SMARTPHONES, GALAXY S7/6 AND MORE (53.85%)",Peoples Services Directorate,Personal Requisites,F106,
http://opendatacommunities.org/id/london-borough-council/sutton,London Borough of Sutton,20/03/2020,1291745,11.98 , AMZNMKTPLACE,"SPLIT - GIANAC USB C CABLE,[5PACK 0.25M 0.5M 1M 2M 3M ] USB TYPE C CHARGING CABLE - NYLON BRAIDED USB C SYNC CABLE FOR GALAXY S10/S9/S8+/S8, MACBOOK, IPAD PRO 2018, SONY XZ, HTC 10, ONEPLUS 5T, HUAWEI P9 ETC. (5PACK) (46.15%)",Peoples Services Directorate,Personal Requisites,F106,
http://opendatacommunities.org/id/london-borough-council/sutton,London Borough of Sutton,09/03/2020,1291745,22.00 , KENT COUNTY COUNCIL,22.00 - F106 0312 9999 - KENT COUNTY COUNCIL BC,Peoples Services Directorate,Personal Requisites,F106,
http://opendatacommunities.org/id/london-borough-council/sutton,London Borough of Sutton,13/03/2020,1291745,22.00 , LBSUTTON,22.00 - F106 0312 9999 - SUTTON BIRTH CERT,Peoples Services Directorate,Personal Requisites,F106,
http://opendatacommunities.org/id/london-borough-council/sutton,London Borough of Sutton,13/03/2020,1291745,22.00 , LBSUTTON,22.00 - F106 0312 9999 - SUTTON BIRTH CERT (2),Peoples Services Directorate,Personal Requisites,F106,
http://opendatacommunities.org/id/london-borough-council/sutton,London Borough of Sutton,13/03/2020,1291745,22.00 , LBSUTTON,22.00 - F106 0312 9999 - SUTTON BIRTH CERT,Peoples Services Directorate,Personal Requisites,F106,
http://opendatacommunities.org/id/london-borough-council/sutton,London Borough of Sutton,06/03/2020,1291745,132.00 , EZYS TAXIS LTD,132.00 - H202 0312 9999 - EZY TAXIS.,Peoples Services Directorate,Accommodation - Bed and Breakfast,H202,
http://opendatacommunities.org/id/london-borough-council/sutton,London Borough of Sutton,05/03/2020,1291745,77.50 , PREMIER INN,PREMIER INN NEWCASTLE,Peoples Services Directorate,Accommodation - Bed and Breakfast,H202,
http://opendatacommunities.org/id/london-borough-council/sutton,London Borough of Sutton,12/03/2020,1291745,124.00 , HOL INN BIRM CITY,124.00 - H202 0312 9999 - HOLIDAY INN BIRMINGHAM CITY CENTRE .PNG,Peoples Services Directorate,Accommodation - Bed and Breakfast,H202,
http://opendatacommunities.org/id/london-borough-council/sutton,London Borough of Sutton,12/03/2020,1291745,(9.50), PREMIER INN,69.50 - H202 0312 9999 - PREMIER INN .PNG,Peoples Services Directorate,Accommodation - Bed and Breakfast,H202,
http://opendatacommunities.org/id/london-borough-council/sutton,London Borough of Sutton,13/03/2020,1291745,132.00 , EZYS TAXIS LTD,132.00 - H202 0312 9999 - EZY TAXISS,Peoples Services Directorate,Accommodation - Bed and Breakfast,H202,
http://opendatacommunities.org/id/london-borough-council/sutton,London Borough of Sutton,09/03/2020,1291745,704.00 , PREMIER INN,704.00 - H202 0316 9999 - PREMIER INN,Peoples Services Directorate,Accommodation - Bed and Breakfast,H202,
http://opendatacommunities.org/id/london-borough-council/sutton,London Borough of Sutton,24/03/2020,1291745,658.00 , CRYSTAL LODGE HOTEL,658.00 - H202 0316 9999 - HOTEL BOOKING CRYSTAL LODGE HOTEL.,Peoples Services Directorate,Accommodation - Bed and Breakfast,H202,
http://opendatacommunities.org/id/london-borough-council/sutton,London Borough of Sutton,20/03/2020,1291745,561.00 , PREMIER INN,561 - H211 - 0316 - 9999 - PRIEMER INN.,Peoples Services Directorate,C.C.A Rent & Utilities,H211,
http://opendatacommunities.org/id/london-borough-council/sutton,London Borough of Sutton,20/03/2020,1291745,64.00 , PREMIER INN,64 - H211 0316 9999 - PREMIER INN STAY (THURSDAYS NIGHT FOR NRPF CLIENT),Peoples Services Directorate,C.C.A Rent & Utilities,H211,
http://opendatacommunities.org/id/london-borough-council/sutton,London Borough of Sutton,19/03/2020,1291745,(500.00), PREMIER INN,500 REFUND - H211 0316 9999,Peoples Services Directorate,C.C.A Rent & Utilities,H211,
http://opendatacommunities.org/id/london-borough-council/sutton,London Borough of Sutton,17/03/2020,1291745,570.00 , PREMIER INN,570.00 - H211 - 0316 - 9999 - PRIEMER INN,Peoples Services Directorate,C.C.A Rent & Utilities,H211,
http://opendatacommunities.org/id/london-borough-council/sutton,London Borough of Sutton,04/03/2020,1291745,25.00 , OYSTER ONLINE,25 - A530 0318 9999 OYSTER.PDF,Peoples Services Directorate,Travelling and Subsistence Allowances,A530,
http://opendatacommunities.org/id/london-borough-council/sutton,London Borough of Sutton,26/02/2020,1291745,20.00 , OYSTER BUS AUTOLOAD,20.00 0318 A530 OYSTER.PDF,Peoples Services Directorate,Travelling and Subsistence Allowances,A530,
http://opendatacommunities.org/id/london-borough-council/sutton,London Borough of Sutton,07/03/2020,1291745,20.00 , OYSTER AUTO-TOP UP,20.00 - A530 0318 9999 TOP UP,Peoples Services Directorate,Recruitment Expenses,A531,
http://opendatacommunities.org/id/london-borough-council/sutton,London Borough of Sutton,28/02/2020,1291745,24.00 , CHARGES BY OPERATOR,24 - H301 0318 9999 - CAB FOR CLIENT TO HOSPITAL.PNG,Peoples Services Directorate,Client Care/Assistance,H301,
http://opendatacommunities.org/id/london-borough-council/sutton,London Borough of Sutton,29/02/2020,1291745,8.33 , FACEBK BQEXURA4V2,ADVERTISING,Peoples Services Directorate,Fees - Other,F299,
http://opendatacommunities.org/id/london-borough-council/sutton,London Borough of Sutton,28/02/2020,1291745,20.00 , OYSTER AUTO-TOP UP,20.00 - A530 0321 9999 - OYSTER TOP UP 2,Peoples Services Directorate,Travelling and Subsistence Allowances,A530,
http://opendatacommunities.org/id/london-borough-council/sutton,London Borough of Sutton,27/02/2020,1291745,20.00 , OYSTER AUTO-TOP UP,20.00 - A530 0321 9999 - OYSTER TOP UP,Peoples Services Directorate,Travelling and Subsistence Allowances,A530,
http://opendatacommunities.org/id/london-borough-council/sutton,London Borough of Sutton,19/03/2020,1291745,(68.43), TRAVELODGE,REFUND,Peoples Services Directorate,Accommodation - Bed and Breakfast,H202,
http://opendatacommunities.org/id/london-borough-council/sutton,London Borough of Sutton,03/03/2020,1291745,74.43 , TRAVELODGE,EMERGENCY ACCOMMODATION,Peoples Services Directorate,Accommodation - Bed and Breakfast,H202,
http://opendatacommunities.org/id/london-borough-council/sutton,London Borough of Sutton,16/03/2020,1291745,34.75 , WM MORRISONS STORE,34.75 - F106 0331 9999 - REFRESHMENTS FOR MEETINGS.,Chief Executive's Directorate,Personal Requisites,F106,
http://opendatacommunities.org/id/london-borough-council/sutton,London Borough of Sutton,06/03/2020,1291745,58.70 , TESCO STORES 5999,TESCO ORDER FOR SFC,Peoples Services Directorate,Personal Requisites,F106,
http://opendatacommunities.org/id/london-borough-council/sutton,London Borough of Sutton,16/03/2020,1291745,28.00 , TESCO STORES 5999,28.00 - F106 0340 9999 - TESCO SFC .PNG,Peoples Services Directorate,Personal Requisites,F106,
http://opendatacommunities.org/id/london-borough-council/sutton,London Borough of Sutton,04/03/2020,1291745,20.00 , OYSTER BUS AUTOLOAD,20.00 A530 0359 9999 OYSTER,Peoples Services Directorate,Travelling and Subsistence Allowances,A530,
http://opendatacommunities.org/id/london-borough-council/sutton,London Borough of Sutton,04/03/2020,1291745,20.00 , OYSTER AUTO-TOP UP,20.00 - A530 0359 9999 - OYSTER TOP UP,Peoples Services Directorate,Travelling and Subsistence Allowances,A530,
http://opendatacommunities.org/id/london-borough-council/sutton,London Borough of Sutton,12/03/2020,1291745,20.00 , OYSTER BUS AUTOLOAD,20.00 A530 0359 9999 OYSTER,Peoples Services Directorate,Travelling and Subsistence Allowances,A530,
http://opendatacommunities.org/id/london-borough-council/sutton,London Borough of Sutton,13/03/2020,1291745,20.00 , OYSTER BUS AUTOLOAD,20.00 0359 A530 OYSTER SM.PDF,Peoples Services Directorate,Travelling and Subsistence Allowances,A530,
http://opendatacommunities.org/id/london-borough-council/sutton,London Borough of Sutton,05/03/2020,1291745,20.00 , OYSTER BUS AUTOLOAD,20.00 A530 0359 9999 OYSTER CARD.PDF,Peoples Services Directorate,Travelling and Subsistence Allowances,A530,
http://opendatacommunities.org/id/london-borough-council/sutton,London Borough of Sutton,27/02/2020,1291745,20.00 , OYSTER BUS AUTOLOAD,20.00 0359 A530 OYSTER SM.PDF,Peoples Services Directorate,Travelling and Subsistence Allowances,A530,
http://opendatacommunities.org/id/london-borough-council/sutton,London Borough of Sutton,03/03/2020,1291745,269.00 , EB  HOW SAFE 2020,TRAINING EVENT,Chief Executive's Directorate,Training - Course Fees,A520,
http://opendatacommunities.org/id/london-borough-council/sutton,London Borough of Sutton,04/03/2020,1291745,868.00 , EVERYTHING BRANDED,EVERYTHING BRANDED,Chief Executive's Directorate,Stationery,F220,
http://opendatacommunities.org/id/london-borough-council/sutton,London Borough of Sutton,02/03/2020,1291745,84.97 , DOUBLETREE,TERRY CLARK - HOTEL ACCOMMODATION FOR NICE WORKSHOP ON MARKET INSIGHT TOOL IN MANCHESTER,Chief Executive's Directorate,Travelling and Subsistence Allowances,A530,
http://opendatacommunities.org/id/london-borough-council/sutton,London Borough of Sutton,02/03/2020,1291745,6.39 , WM MORRISONS STORE,REFRESHMENTS FOR OFSTED VISIT,Chief Executive's Directorate,Refreshments,F155,
http://opendatacommunities.org/id/london-borough-council/sutton,London Borough of Sutton,28/02/2020,1291745,13.47 , WM MORRISONS STORE,REFRESHMENTS FOR OFSTED VISIT,Chief Executive's Directorate,Refreshments,F155,
http://opendatacommunities.org/id/london-borough-council/sutton,London Borough of Sutton,12/03/2020,1291745,20.00 , OYSTER BUS AUTOLOAD,20.00 A530 0383 9999 OYSTER P,Peoples Services Directorate,Travelling and Subsistence Allowances,A530,
http://opendatacommunities.org/id/london-borough-council/sutton,London Borough of Sutton,04/03/2020,1291745,25.00 , OYSTER ONLINE,25 - A530 0383 9999 - OYSTER.PD,Peoples Services Directorate,Travelling and Subsistence Allowances,A530,
http://opendatacommunities.org/id/london-borough-council/sutton,London Borough of Sutton,04/03/2020,1291745,20.00 , OYSTER AUTO-TOP UP,25 - A530 0383 9999 - OYSTER TOP UP,Peoples Services Directorate,Travelling and Subsistence Allowances,A530,
http://opendatacommunities.org/id/london-borough-council/sutton,London Borough of Sutton,27/02/2020,1291745,40.00 , AUTO TOP-UP ARREARS,40.00 - A530 0383 9999 - OYSTER TOP UP 2,Peoples Services Directorate,Travelling and Subsistence Allowances,A530,
http://opendatacommunities.org/id/london-borough-council/sutton,London Borough of Sutton,27/02/2020,1291745,66.50 , PREMIER INN,PREMIER INN HOTEL,Peoples Services Directorate,Accommodation - Bed and Breakfast,H202,
http://opendatacommunities.org/id/london-borough-council/sutton,London Borough of Sutton,12/03/2020,1291745,44.00 , SQ  ROSEHILL CARS LTD,44 - E072 0384 9999 - FURTHER CHARGES FOR WAITING TIME BIGGER CAR.PNG,Peoples Services Directorate,Hired Peoples Transport (Children),E072,
http://opendatacommunities.org/id/london-borough-council/sutton,London Borough of Sutton,12/03/2020,1291745,18.00 , SQ  ROSEHILL CARS LTD,18.00 - E072 0384 9999 - ROSEHILL CARS .PNG,Peoples Services Directorate,Hired Peoples Transport (Children),E072,
http://opendatacommunities.org/id/london-borough-council/sutton,London Borough of Sutton,05/03/2020,1291745,30.00 , HMCOURTS-SERVICE.G,COURT FINE FEE DELAY,Peoples Services Directorate,Personal Requisites,F106,
http://opendatacommunities.org/id/london-borough-council/sutton,London Borough of Sutton,05/03/2020,1291745,50.00 , HMCOURTS-SERVICE.G,COURT FINE,Peoples Services Directorate,Personal Requisites,F106,
http://opendatacommunities.org/id/london-borough-council/sutton,London Borough of Sutton,02/03/2020,1291745,200.00 , LBSUTTON,HOUSING ARREARS,Peoples Services Directorate,Fees - Other,F299,
http://opendatacommunities.org/id/london-borough-council/sutton,London Borough of Sutton,19/03/2020,1291745,420.00 , CRYSTAL LODGE HOTEL,420 - H202 0384 9999 - THE CRYSTAL LODGE HOTEL.PNG,Peoples Services Directorate,Accommodation - Bed and Breakfast,H202,
http://opendatacommunities.org/id/london-borough-council/sutton,London Borough of Sutton,12/03/2020,1291745,575.21 , CRYSTAL LODGE HOTEL,575.21 - H301 0384 9999 - HOTEL ACCOM FOR EXPECTANT MOTHER .PNG,Peoples Services Directorate,Client Care/Assistance,H301,
http://opendatacommunities.org/id/london-borough-council/sutton,London Borough of Sutton,16/03/2020,1291745,240.00 , CRYSTAL LODGE HOTEL,240.00 H301 0384 9999 HOTEL,Peoples Services Directorate,Client Care/Assistance,H301,
http://opendatacommunities.org/id/london-borough-council/sutton,London Borough of Sutton,20/03/2020,1291745,0.43 , AMAZON.CO.UK NU77Q85S5,BALANCING ENTRY AMOUNT (13.33%),Peoples Services Directorate,LAC - Education,F269,
http://opendatacommunities.org/id/london-borough-council/sutton,London Borough of Sutton,04/03/2020,1291745,9.85 , AMAZON.CO.UK VG2WF82T5,"SPLIT - SANDISK ULTRA FLAIR 64 GB USB 3.0 FLASH DRIVE, UPTO 150MB/S READ - BLACK (73.97%)",Peoples Services Directorate,LAC - Education,F269,
http://opendatacommunities.org/id/london-borough-council/sutton,London Borough of Sutton,04/03/2020,1291745,3.47 , AMAZON.CO.UK VG2WF82T5,BALANCING ENTRY AMOUNT (26.03%),Peoples Services Directorate,LAC - Education,F269,
http://opendatacommunities.org/id/london-borough-council/sutton,London Borough of Sutton,04/03/2020,1291745,12.59 , PSYCHOLOGICAL ASSESSME,FOREIGN EXCHANGE FEE FOR US PURCHASE OF PSYCHOLOGICAL ASSESSMENTS,Peoples Services Directorate,LAC - Education,F269,
http://opendatacommunities.org/id/london-borough-council/sutton,London Borough of Sutton,03/03/2020,1291745,457.77 , PSYCHOLOGICAL ASSESSME,PSYCHOLOGICAL ASSESSMENT PACKAGE FOR TRAUMA DELIVERY,Peoples Services Directorate,LAC - Education,F269,
http://opendatacommunities.org/id/london-borough-council/sutton,London Borough of Sutton,26/03/2020,1291745,26.00 , AMAZON.CO.UK AB51J63H5,SPLIT - OXFORD READING TREE: LEVEL 3: STORIES: PACK OF 6 (83.9%),Peoples Services Directorate,LAC - Education,F269,
http://opendatacommunities.org/id/london-borough-council/sutton,London Borough of Sutton,26/03/2020,1291745,4.99 , AMAZON.CO.UK AB51J63H5,BALANCING ENTRY AMOUNT (16.1%),Peoples Services Directorate,LAC - Education,F269,
http://opendatacommunities.org/id/london-borough-council/sutton,London Borough of Sutton,26/03/2020,1291745,11.46 , AMAZON.CO.UK QU72R8F35,"SPLIT - MELISSA & DOUG GIANT GIRAFFE - THE ORIGINAL (PLAYSPACES & ROOM DECOR, LIFELIKE STUFFED ANIMAL PLUSH TOY, OVER 1.2 METRES TALL, GREAT GIFT FOR GIRLS AND BOYS - BEST FOR 3, 4, 5 YEAR OLDS AND UP) (78.62%)",Peoples Services Directorate,LAC - Education,F269,
http://opendatacommunities.org/id/london-borough-council/sutton,London Borough of Sutton,26/03/2020,1291745,3.14 , AMAZON.CO.UK QU72R8F35,BALANCING ENTRY AMOUNT (21.56%),Peoples Services Directorate,LAC - Education,F269,
http://opendatacommunities.org/id/london-borough-council/sutton,London Borough of Sutton,26/03/2020,1291745,(0.03), AMAZON.CO.UK QU72R8F35,BALANCING ENTRY TAX (-0.17%),Peoples Services Directorate,LAC - Education,F269,
http://opendatacommunities.org/id/london-borough-council/sutton,London Borough of Sutton,25/03/2020,1291745,6.99 , AMZNMKTPLACE,SPLIT - A MIDSUMMER NIGHT'S DREAM (THE RSC SHAKESPEARE) (100%),Peoples Services Directorate,LAC - Education,F269,
http://opendatacommunities.org/id/london-borough-council/sutton,London Borough of Sutton,24/03/2020,1291745,8.52 , AMAZON.CO.UK 177H72JY5,SPLIT - GRADE 9-1 GCSE ENGLISH LANGUAGE AND LITERATURE COMPLETE REVISION & PRACTICE (WITH ONLINE EDN) (CGP GCSE ENGLISH 9-1 REVISION) (16.99%),Peoples Services Directorate,LAC - Education,F269,
http://opendatacommunities.org/id/london-borough-council/sutton,London Borough of Sutton,20/03/2020,1291745,3.17 , AMAZON.CO.UK C94N834D5,SPLIT - OXFORD HELIX MATHS SET WITH STORAGE TIN (92.46%),Peoples Services Directorate,LAC - Education,F269,
http://opendatacommunities.org/id/london-borough-council/sutton,London Borough of Sutton,20/03/2020,1291745,0.26 , AMAZON.CO.UK C94N834D5,BALANCING ENTRY AMOUNT (7.54%),Peoples Services Directorate,LAC - Education,F269,
http://opendatacommunities.org/id/london-borough-council/sutton,London Borough of Sutton,15/03/2020,1291745,90.00 , AMAZON.CO.UK PA29S0HF5,SPLIT - RODE NT-USB MICROPHONE (73.97%),Peoples Services Directorate,LAC - Education,F269,
http://opendatacommunities.org/id/london-borough-council/sutton,London Borough of Sutton,15/03/2020,1291745,31.67 , AMAZON.CO.UK PA29S0HF5,SPLIT - RODE SMARTLAV+ LAVALIER MICROPHONE FOR SMARTPHONE (26.03%),Peoples Services Directorate,LAC - Education,F269,
http://opendatacommunities.org/id/london-borough-council/sutton,London Borough of Sutton,14/03/2020,1291745,7.39 , AMAZON.CO.UK 7L4K28E95,SPLIT - NEW FUNCTIONAL SKILLS MATHS: EDEXCEL ENTRY LEVEL 3 - STUDY & TEST PRACTICE (FOR 2019 & BEYOND) (CGP FUNCTIONAL SKILLS) (71.19%),Peoples Services Directorate,LAC - Education,F269,
http://opendatacommunities.org/id/london-borough-council/sutton,London Borough of Sutton,14/03/2020,1291745,2.99 , AMAZON.CO.UK 7L4K28E95,BALANCING ENTRY AMOUNT (28.81%),Peoples Services Directorate,LAC - Education,F269,
http://opendatacommunities.org/id/london-borough-council/sutton,London Borough of Sutton,13/03/2020,1291745,16.06 , AMAZON.CO.UK LD3O620S5,SPLIT - LONGMAN PHOTO DICTIONARY (100%),Peoples Services Directorate,LAC - Education,F269,
http://opendatacommunities.org/id/london-borough-council/sutton,London Borough of Sutton,08/03/2020,1291745,29.24 , AMZNMKTPLACE AMAZON.CO,"SPLIT - RESULTSPORT® THERAPEUTIC HAND EXERCISE GEL STRESS BALLS SET OF 2 FIRM/SOFT FOR ADULTS & KIDS - ARTHRITIS RELIEF, STROKE REHABILITATION, GRIP STRENGTH, WRIST SUPPORT (58.4%)",Peoples Services Directorate,LAC - Education,F269,
http://opendatacommunities.org/id/london-borough-council/sutton,London Borough of Sutton,08/03/2020,1291745,20.82 , AMZNMKTPLACE AMAZON.CO,"SPLIT - KENSINGTON WIRELESS USB PRESENTATION CLICKER WITH RED LASER POINTER, COMPATIBLE WITH WINDOWS & MACOS - 20M RANGE (33374EU) (41.6%)",Peoples Services Directorate,LAC - Education,F269,
http://opendatacommunities.org/id/london-borough-council/sutton,London Borough of Sutton,05/03/2020,1291745,6.87 , AMAZON.CO.UK 8G7FM1AG5,SPLIT - NEW FUNCTIONAL SKILLS ENGLISH LEVEL 2 - STUDY & TEST PRACTICE (FOR 2019 & BEYOND) (CGP FUNCTIONAL SKILLS) (69.68%),Peoples Services Directorate,LAC - Education,F269,
http://opendatacommunities.org/id/london-borough-council/sutton,London Borough of Sutton,05/03/2020,1291745,2.99 , AMAZON.CO.UK 8G7FM1AG5,BALANCING ENTRY AMOUNT (30.32%),Peoples Services Directorate,LAC - Education,F269,
http://opendatacommunities.org/id/london-borough-council/sutton,London Borough of Sutton,24/03/2020,1291745,7.18 , AMAZON.CO.UK 177H72JY5,SPLIT - HELIX OXFORD COMPLETE STATIONERY SET IN 13.5 INCH PENCIL CASE (16.36%),Peoples Services Directorate,LAC - Education,F269,
http://opendatacommunities.org/id/london-borough-council/sutton,London Borough of Sutton,24/03/2020,1291745,5.62 , AMAZON.CO.UK 177H72JY5,SPLIT - GRADE 9-1 GCSE COMBINED SCIENCE: AQA 10-MINUTE TESTS (WITH ANSWERS) - FOUNDATION (CGP GCSE COMBINED SCIENCE 9-1 REVISION) (11.2%),Peoples Services Directorate,LAC - Education,F269,
http://opendatacommunities.org/id/london-borough-council/sutton,London Borough of Sutton,24/03/2020,1291745,8.13 , AMAZON.CO.UK 177H72JY5,SPLIT - NEW GCSE 9-1 GEOGRAPHY AQA COMPLETE REVISION & PRACTICE (W/ ONLINE ED) - NEW FOR 2020 EXAMS & BEYOND (CGP GCSE GEOGRAPHY 9-1 REVISION) (16.21%),Peoples Services Directorate,LAC - Education,F269,
http://opendatacommunities.org/id/london-borough-council/sutton,London Borough of Sutton,24/03/2020,1291745,7.62 , AMAZON.CO.UK 177H72JY5,SPLIT - GRADE 9-1 GCSE COMBINED SCIENCE: AQA REVISION GUIDE WITH ONLINE EDITION - FOUNDATION (CGP GCSE COMBINED SCIENCE 9-1 REVISION) (15.19%),Peoples Services Directorate,LAC - Education,F269,
http://opendatacommunities.org/id/london-borough-council/sutton,London Borough of Sutton,24/03/2020,1291745,8.52 , AMAZON.CO.UK 177H72JY5,SPLIT - NEW GCSE MATHS EDEXCEL COMPLETE REVISION & PRACTICE: FOUNDATION - GRADE 9-1 COURSE (WITH ONLINE EDN) (CGP GCSE MATHS 9-1 REVISION) (16.99%),Peoples Services Directorate,LAC - Education,F269,
http://opendatacommunities.org/id/london-borough-council/sutton,London Borough of Sutton,24/03/2020,1291745,3.67 , AMAZON.CO.UK 177H72JY5,BALANCING ENTRY AMOUNT (7.06%),Peoples Services Directorate,LAC - Education,F269,
http://opendatacommunities.org/id/london-borough-council/sutton,London Borough of Sutton,24/03/2020,1291745,7.26 , AMAZON.CO.UK YR4UA0Q25,SPLIT - NEW FUNCTIONAL SKILLS ENGLISH: EDEXCEL ENTRY LEVEL 3 - STUDY & TEST PRACTICE (FOR 2019 & BEYOND) (CGP FUNCTIONAL SKILLS) (70.83%),Peoples Services Directorate,LAC - Education,F269,
http://opendatacommunities.org/id/london-borough-council/sutton,London Borough of Sutton,24/03/2020,1291745,2.99 , AMAZON.CO.UK YR4UA0Q25,BALANCING ENTRY AMOUNT (29.17%),Peoples Services Directorate,LAC - Education,F269,
http://opendatacommunities.org/id/london-borough-council/sutton,London Borough of Sutton,21/03/2020,1291745,7.26 , AMAZON.CO.UK PM8XS65Z5,SPLIT - NEW FUNCTIONAL SKILLS MATHS: EDEXCEL ENTRY LEVEL 3 - STUDY & TEST PRACTICE (FOR 2019 & BEYOND) (CGP FUNCTIONAL SKILLS) (70.83%),Peoples Services Directorate,LAC - Education,F269,
http://opendatacommunities.org/id/london-borough-council/sutton,London Borough of Sutton,21/03/2020,1291745,2.99 , AMAZON.CO.UK PM8XS65Z5,BALANCING ENTRY AMOUNT (29.17%),Peoples Services Directorate,LAC - Education,F269,
http://opendatacommunities.org/id/london-borough-council/sutton,London Borough of Sutton,20/03/2020,1291745,8.87 , AMZNMKTPLACE,SPLIT - EASTLIGHT A4 REFILL PAD 160 PAGE 80GSM - (PACK OF 4) SIDEBOUND FEINT RULED WITH MARGIN 4 HOLE PUNCHED (100%),Peoples Services Directorate,LAC - Education,F269,
http://opendatacommunities.org/id/london-borough-council/sutton,London Borough of Sutton,20/03/2020,1291745,2.82 , AMAZON.CO.UK NU77Q85S5,"SPLIT - STAEDTLER 364 A WP8 TEXTSURFER HIGHLIGHTER BONUS PACK, ASSORTED COLOURS, PACK OF 6 + 2 (86.67%)",Peoples Services Directorate,LAC - Education,F269,
http://opendatacommunities.org/id/london-borough-council/sutton,London Borough of Sutton,05/03/2020,1291745,20.00 , OYSTER AUTO-TOP UP,OYSTER TOP,"Environment, Housing & Regeneration Directorate",General Office Expenses,F235,
http://opendatacommunities.org/id/london-borough-council/sutton,London Borough of Sutton,28/02/2020,1291745,20.00 , OYSTER AUTO-TOP UP,OYSTERCARD TOP UP,"Environment, Housing & Regeneration Directorate",Advertising/Publicity (non Staff),F240,
http://opendatacommunities.org/id/london-borough-council/sutton,London Borough of Sutton,17/03/2020,1291745,29.16 , RYMAN 1176,LAPTOP BAG - REMOTE ENFORCEMENT,"Environment, Housing & Regeneration Directorate",General Office Expenses,F235,
http://opendatacommunities.org/id/london-borough-council/sutton,London Borough of Sutton,17/03/2020,1291745,350.00 , THE POST OFFICE,STAMPS - BC BACKUP,"Environment, Housing & Regeneration Directorate",Postages - General,F350,
http://opendatacommunities.org/id/london-borough-council/sutton,London Borough of Sutton,16/03/2020,1291745,90.00 , YUMMY'S SUTTON LIMITED,LUNCH FOR TEAM MEETING (RECHARGED),Resources Directorate,Hospitality (VAT not Recoverable),F325,
http://opendatacommunities.org/id/london-borough-council/sutton,London Borough of Sutton,16/03/2020,1291745,7.75 , WM MORRISONS STORE,CONFERENCE TEAM MEETING LUNCH (RECHARGED),Resources Directorate,Hospitality (VAT not Recoverable),F325,
http://opendatacommunities.org/id/london-borough-council/sutton,London Borough of Sutton,02/03/2020,1291745,158.08 , MAJESTIC WINE,SPARKLING WINE FOR RESALE,Resources Directorate,Subscriptions - General,F450,
http://opendatacommunities.org/id/london-borough-council/sutton,London Borough of Sutton,02/03/2020,1291745,6.87 , FACEBK 7SYXMQWXB2,FACEBOOK ADVERTISING TO PROMOTE WEDDING FAIR,Resources Directorate,Miscellaneous Expenses,F620,
http://opendatacommunities.org/id/london-borough-council/sutton,London Borough of Sutton,27/02/2020,1291745,16.67 , TESCO STORE 3235,DISHWASHER TABLETS/ORANGE JUICE,Resources Directorate,Miscellaneous Expenses,F620,
http://opendatacommunities.org/id/london-borough-council/sutton,London Borough of Sutton,12/03/2020,1291745,12.89 , WWW.CULTPEN.COM,FOUNTAIN PENS FOR REGISTRATION,Resources Directorate,Miscellaneous Expenses,F620,
http://opendatacommunities.org/id/london-borough-council/sutton,London Borough of Sutton,03/03/2020,1291745,8.32 , SPOTIFY P0ED025273,MUSIC FOR WEDDINGS,Resources Directorate,Miscellaneous Expenses,F620,
http://opendatacommunities.org/id/london-borough-council/sutton,London Borough of Sutton,18/03/2020,1291745,20.00 , OYSTER AUTO-TOP UP,OYSTER TOP UP,HRA,General Office Expenses,F235,
http://opendatacommunities.org/id/london-borough-council/sutton,London Borough of Sutton,06/03/2020,1291745,86.37 , WWW.LUCASHOUSEHOTEL.CO,HOTEL FOR CONFERENCE - BIRMINGHAM,Chief Executive's Directorate,Hotel Accomodation,A512,
http://opendatacommunities.org/id/london-borough-council/sutton,London Borough of Sutton,05/03/2020,1291745,5.40 , BIRMINGHAM NS TVM,HOTEL FOR CONFERENCE - BIRMINGHAM,Chief Executive's Directorate,Hotel Accomodation,A512,
http://opendatacommunities.org/id/london-borough-council/sutton,London Borough of Sutton,12/03/2020,1291745,20.00 , OYSTER AUTO-TOP UP,TEAM OYSTER,Chief Executive's Directorate,Travelling and Subsistence Allowances,A530,
http://opendatacommunities.org/id/london-borough-council/sutton,London Borough of Sutton,08/03/2020,1291745,20.00 , OYSTER AUTO-TOP UP,TEAM OYSTER,Chief Executive's Directorate,Travelling and Subsistence Allowances,A530,
http://opendatacommunities.org/id/london-borough-council/sutton,London Borough of Sutton,06/03/2020,1291745,5.60 , UNIVERSITY STN SST,TEAM OYSTER,Chief Executive's Directorate,Travelling and Subsistence Allowances,A530,
http://opendatacommunities.org/id/london-borough-council/sutton,London Borough of Sutton,06/03/2020,1291745,86.37 , WWW.LUCASHOUSEHOTEL.CO,CONFERENCE TRAVEL,Chief Executive's Directorate,Travelling and Subsistence Allowances,A530,
http://opendatacommunities.org/id/london-borough-council/sutton,London Borough of Sutton,01/03/2020,1291745,20.00 , OYSTER AUTO-TOP UP,TEAM OYSTER,Chief Executive's Directorate,Travelling and Subsistence Allowances,A530,
http://opendatacommunities.org/id/london-borough-council/sutton,London Borough of Sutton,01/03/2020,1291745,20.00 , OYSTER AUTO-TOP UP,TEAM OYSTER,Chief Executive's Directorate,Travelling and Subsistence Allowances,A530,
http://opendatacommunities.org/id/london-borough-council/sutton,London Borough of Sutton,01/03/2020,1291745,20.00 , OYSTER AUTO-TOP UP,CONFERENCE TRAVEL X 2,Chief Executive's Directorate,Travelling and Subsistence Allowances,A530,
http://opendatacommunities.org/id/london-borough-council/sutton,London Borough of Sutton,28/02/2020,1291745,20.00 , OYSTER AUTO-TOP UP,TEAM OYSTER,Chief Executive's Directorate,Travelling and Subsistence Allowances,A530,
http://opendatacommunities.org/id/london-borough-council/sutton,London Borough of Sutton,14/03/2020,1291745,385.80 , MAILCHIMP    MONTHLY,WEB HOSTING,Chief Executive's Directorate,Fees - Computer Software,F384,
http://opendatacommunities.org/id/london-borough-council/sutton,London Borough of Sutton,26/02/2020,1291745,25.00 , OYSTER ONLINE,25 - A530 4114 9999 - BUSINESS SUPPORT OYSTER,Resources Directorate,Conferences - Travel and Subsistence,A526,
http://opendatacommunities.org/id/london-borough-council/sutton,London Borough of Sutton,26/02/2020,1291745,25.00 , OYSTER ONLINE,25 - A530 4114 9999 - BUSINESS SUPPORT OYSTER,Resources Directorate,Travelling and Subsistence Allowances,A530,
http://opendatacommunities.org/id/london-borough-council/sutton,London Borough of Sutton,26/02/2020,1291745,20.00 , OYSTER BUS AUTOLOAD,20.00 - A530 4114 9999,Resources Directorate,Travelling and Subsistence Allowances,A530,
http://opendatacommunities.org/id/london-borough-council/sutton,London Borough of Sutton,10/03/2020,1291745,10.10 , WILKO RETAIL LIMITED,10.10 - F106 4114 9999 - WILKO .PDF,Resources Directorate,Personal Requisites,F106,
http://opendatacommunities.org/id/london-borough-council/sutton,London Borough of Sutton,23/03/2020,1291745,47.60 , FACEBK KKWS7SEAL2,VALENTINES DAY ADVERTISING FOR DOMESTIC ABUSE CAMPAIGN,Chief Executive's Directorate,Corporate Publicity,F356,
http://opendatacommunities.org/id/london-borough-council/sutton,London Borough of Sutton,11/03/2020,1291745,335.40 , GOOGLE  ADS8517410550,BALANCING ENTRY AMOUNT (100%),Chief Executive's Directorate,Corporate Publicity,F356,
http://opendatacommunities.org/id/london-borough-council/sutton,London Borough of Sutton,05/03/2020,1291745,20.00 , OYSTER AUTO-TOP UP,AUTO OYSTER CARD TOP UP FOR CLLR.,Resources Directorate,Members Expenses - Travel and Subsistence,F401,
http://opendatacommunities.org/id/london-borough-council/sutton,London Borough of Sutton,03/03/2020,1291745,(27.05), TRAINLINE,TRAIN LINE REFUND FOR CLLR. SHORT,Resources Directorate,Members Expenses - Other,F402,
http://opendatacommunities.org/id/london-borough-council/sutton,London Borough of Sutton,20/03/2020,1291745,2.77 , FACEBK KKWS7SEAL2,ANNUAL CANVA SUBSCRIPTION (GRAPHIC DESIGN TOOL),Chief Executive's Directorate,Corporate Publicity,F356,
http://opendatacommunities.org/id/london-borough-council/sutton,London Borough of Sutton,19/03/2020,1291745,104.17 , FACEBK 82AP4S24V2,FACEBOOK ADVERTS FOR BUDGET AND COUNCIL TAX 2020/21 CAMPAIGN,Chief Executive's Directorate,Corporate Publicity,F356,
http://opendatacommunities.org/id/london-borough-council/sutton,London Borough of Sutton,18/03/2020,1291745,100.90 , CANVA  02634-0699493,ANNUAL CANVA SUBSCRIPTION (GRAPHIC DESIGN TOOL),Chief Executive's Directorate,Corporate Publicity,F356,
http://opendatacommunities.org/id/london-borough-council/sutton,London Borough of Sutton,12/03/2020,1291745,75.00 , FACEBK T46C7S63V2,FACEBOOK ADVERTS FOR BUDGET AND COUNCIL TAX 2020/21 CAMPAIGN,Chief Executive's Directorate,Corporate Publicity,F356,
http://opendatacommunities.org/id/london-borough-council/sutton,London Borough of Sutton,10/03/2020,1291745,90.00 , FACEBK LDFSSQA3V2,BUDGET FACEBOOK ADS,Chief Executive's Directorate,Corporate Publicity,F356,
http://opendatacommunities.org/id/london-borough-council/sutton,London Borough of Sutton,06/03/2020,1291745,0.21 , FACEBK LDFSSQA3V2,FOREIGN EXCHANGE FEE,Chief Executive's Directorate,Corporate Publicity,F356,
http://opendatacommunities.org/id/london-borough-council/sutton,London Borough of Sutton,05/03/2020,1291745,9.95 , IMGFLIP.COM PRO SUBSCR,SPLIT - IMGFLIP PRO MONTHLY (128.39%),Chief Executive's Directorate,Corporate Publicity,F356,
http://opendatacommunities.org/id/london-borough-council/sutton,London Borough of Sutton,05/03/2020,1291745,(2.20), IMGFLIP.COM PRO SUBSCR,BALANCING ENTRY AMOUNT (-85.17%),Chief Executive's Directorate,Corporate Publicity,F356,
http://opendatacommunities.org/id/london-borough-council/sutton,London Borough of Sutton,04/03/2020,1291745,0.99 , CANVA  02619-10031363,DESIGN RESOURCES FOR BUDGET,Chief Executive's Directorate,Corporate Publicity,F356,
http://opendatacommunities.org/id/london-borough-council/sutton,London Borough of Sutton,26/02/2020,1291745,47.97 , 123 REG LTD,SUTTON PLAN DOMAIN,Chief Executive's Directorate,IT Licences,F385,
http://opendatacommunities.org/id/london-borough-council/sutton,London Borough of Sutton,21/03/2020,1291745,242.99 , AMZNMKTPLACE,REMOTE WORKING BECC EQUIPMENT,"Environment, Housing & Regeneration Directorate",Other Equipment - Purchase,F015,
http://opendatacommunities.org/id/london-borough-council/sutton,London Borough of Sutton,10/03/2020,1291745,76.00 , AMAZON.CO.UK ZG0P20NC5,ASB BOOK,"Environment, Housing & Regeneration Directorate",Books,F006,
http://opendatacommunities.org/id/london-borough-council/sutton,London Borough of Sutton,16/03/2020,1291745,10.61 , MAILCHIMP    MONTHLY,WEB HOSTING,Resources Directorate,Fees - Computer Software,F384,
http://opendatacommunities.org/id/london-borough-council/sutton,London Borough of Sutton,20/03/2020,1291745,179.99 , ARGOS LTD,PURCHASE FOR CRISIS LOAN AND GRANT SCHEME,Resources Directorate,Grants,F473,
http://opendatacommunities.org/id/london-borough-council/sutton,London Borough of Sutton,04/03/2020,1291745,(239.99), ARGOS LTD,RETURN OF COST OF 10040946 LESS 10.00 FEE,Resources Directorate,Grants,F473,
http://opendatacommunities.org/id/london-borough-council/sutton,London Borough of Sutton,20/03/2020,1291745,254.99 , ARGOS LTD,PURCHASE FOR CRISIS LOAN AND GRANT SCHEME,Resources Directorate,Grants,F473,
http://opendatacommunities.org/id/london-borough-council/sutton,London Borough of Sutton,20/03/2020,1291745,179.99 , ARGOS LTD,PURCHASE FOR CRISIS LOAN AND GRANT SCHEME,Resources Directorate,Grants,F473,
http://opendatacommunities.org/id/london-borough-council/sutton,London Borough of Sutton,19/03/2020,1291745,254.99 , ARGOS LTD,PURCHASE FOR CRISIS LOAN AND GRANT SCHEME,Resources Directorate,Grants,F473,
http://opendatacommunities.org/id/london-borough-council/sutton,London Borough of Sutton,19/03/2020,1291745,119.99 , ARGOS LTD,PURCHASE FOR CRISIS LOAN AND GRANT SCHEME,Resources Directorate,Grants,F473,
http://opendatacommunities.org/id/london-borough-council/sutton,London Borough of Sutton,19/03/2020,1291745,321.94 , ARGOS LTD,PURCHASE FOR CRISIS LOAN AND GRANT SCHEME,Resources Directorate,Grants,F473,
http://opendatacommunities.org/id/london-borough-council/sutton,London Borough of Sutton,16/03/2020,1291745,404.98 , ARGOS LTD,PURCHASE FOR CRISIS LOAN AND GRANT SCHEME,Resources Directorate,Grants,F473,
http://opendatacommunities.org/id/london-borough-council/sutton,London Borough of Sutton,03/03/2020,1291745,249.99 , ARGOS LTD,CL&G PURCHASE 10040946,Resources Directorate,Grants,F473,
http://opendatacommunities.org/id/london-borough-council/sutton,London Borough of Sutton,26/02/2020,1291745,48.94 , ARGOS LTD,CL&G PURCHASE ORDER 10016374 357.93 260220,Resources Directorate,Grants,F473,
http://opendatacommunities.org/id/london-borough-council/sutton,London Borough of Sutton,26/02/2020,1291745,498.98 , ARGOS LTD,CL&G PURCHASE ORDER 10055690 498.98 260220,Resources Directorate,Grants,F473,
http://opendatacommunities.org/id/london-borough-council/sutton,London Borough of Sutton,26/02/2020,1291745,308.99 , ARGOS LTD,CL&G PURCHASE ORDER 10016374 357.93 260220,Resources Directorate,Grants,F473,
http://opendatacommunities.org/id/london-borough-council/sutton,London Borough of Sutton,25/03/2020,1291745,254.99 , ARGOS LTD,PURCHASE OF ELECTRIC COOKER WITH INSTALLATION FOR CRISIS GRANT,Resources Directorate,Grants,F473,
http://opendatacommunities.org/id/london-borough-council/sutton,London Borough of Sutton,17/03/2020,1291745,656.99 , ARGOS LTD,PURCHASE OF SINGLE BED AND FRIDGE FREEZER FOR CRISIS LOAN,Resources Directorate,Grants,F473,
http://opendatacommunities.org/id/london-borough-council/sutton,London Borough of Sutton,06/03/2020,1291745,276.95 , ARGOS LTD,PURCHASE OF BUNK BEDS FOR CRISIS GRANT,Resources Directorate,Grants,F473,
http://opendatacommunities.org/id/london-borough-council/sutton,London Borough of Sutton,02/03/2020,1291745,565.93 , ARGOS LTD,"PURCHASE OF ELECTRIC COOKER, FRIDGE FREEZER AND SINGLE DIVAN FOR CRISIS LOAN",Resources Directorate,Grants,F473,
http://opendatacommunities.org/id/london-borough-council/sutton,London Borough of Sutton,23/03/2020,1291745,19.50 , WWW.GOV.UK,PROBATE CERTIFICATES X 13,Resources Directorate,General Office Expenses,F235,
http://opendatacommunities.org/id/london-borough-council/sutton,London Borough of Sutton,03/03/2020,1291745,47.67 , MARKS&SPENCER PLC SACA,PURCHASE OF FOOD AND DRINK FOR CSE ASSESSMENT LUNCH,Resources Directorate,General Office Expenses,F235,
http://opendatacommunities.org/id/london-borough-council/sutton,London Borough of Sutton,02/03/2020,1291745,25.67 , SAINSBURYS 0683,PURCHASE OF FOOD AND DRINKS FOR CSE ASSESSMENT LUNCH,Resources Directorate,General Office Expenses,F235,
http://opendatacommunities.org/id/london-borough-council/sutton,London Borough of Sutton,04/03/2020,1291745,33.00 , PAYPAL  CONSTRUCTIO,ONE COPY OF:COLLATERAL WARRANTY - SUB-CONSULTANT - CLIENT (HARD COPY ONLY),Resources Directorate,Books of Reference/Statute,F222,
http://opendatacommunities.org/id/london-borough-council/sutton,London Borough of Sutton,25/02/2020,1291745,33.00 , PAYPAL  CONSTRUCTIO,NOVATION AGREEMENT FROM CIC BUILT ENVIRONMENT SHOPS,Resources Directorate,Books of Reference/Statute,F222,
http://opendatacommunities.org/id/london-borough-council/sutton,London Borough of Sutton,04/03/2020,1291745,"2,425.00 ", REDACTIVE,PUBLIC FINANCE AWARDS 2020 ,Resources Directorate,Fees - Other,F299,
http://opendatacommunities.org/id/london-borough-council/sutton,London Borough of Sutton,06/03/2020,1291745,215.98 , PREMIER INN,215.98 - H212 6401 9999 -,Peoples Services Directorate,C.C.A Travel & Subsistance,H212,
http://opendatacommunities.org/id/london-borough-council/sutton,London Borough of Sutton,05/03/2020,1291745,20.00 , OYSTER BUS AUTOLOAD,20.00 - A530 6403 9999 - OYSTER TOP UP,Peoples Services Directorate,Travelling and Subsistence Allowances,A530,
http://opendatacommunities.org/id/london-borough-council/sutton,London Borough of Sutton,04/03/2020,1291745,25.00 , OYSTER ONLINE,25 - A530 6404 9999.PDF,Peoples Services Directorate,Travelling and Subsistence Allowances,A530,
http://opendatacommunities.org/id/london-borough-council/sutton,London Borough of Sutton,03/03/2020,1291745,53.94 , WWW.ETCVENUES.CO.UK,PDMT AWAYDAY 20.03.20 - AVONMOUTH HOUSE,Peoples Services Directorate,Conferences - Fees,A525,
http://opendatacommunities.org/id/london-borough-council/sutton,London Borough of Sutton,04/03/2020,1291745,499.00 , WWW.ADASS.ORG.UK,ADASS 2020 SPRING CONFERENCE,Peoples Services Directorate,Conferences - Fees,A525,
http://opendatacommunities.org/id/london-borough-council/sutton,London Borough of Sutton,08/03/2020,1291745,40.00 , OYSTER AUTO-TOP UP,OYSTER TOP UP,Peoples Services Directorate,Travelling and Subsistence Allowances,A530,
http://opendatacommunities.org/id/london-borough-council/sutton,London Borough of Sutton,09/03/2020,1291745,378.42 , WWW.ETCVENUES.CO.UK,AWAYDAY FOR ADULT SOCIAL CARE ON 02.04.20,Peoples Services Directorate,Fees - Room Hire,F290,
